bitfinex-derivatives/quotes_BTCF0:USTF0_20260118
["timestamp","ask_amount","ask_price","bid_price","bid_amount"]
[1768694735032,0.09210599,95227.0,95225.0,7e-08]
[1768694735330,0.010505,95224.0,95214.0,0.07539968]
[1768694735628,0.010505,95224.0,95213.0,0.07539968]
[1768694735828,0.010505,95224.0,95209.0,0.07539968]
[1768694736530,0.010505,95224.0,95210.0,0.07539968]
[1768694736930,0.09210599,95227.0,95210.0,0.07539968]
[1768694736931,0.010504,95227.0,95211.0,0.00958697]
[1768694737829,0.010504,95227.0,95212.0,0.00958697]
[1768694738534,0.010504,95227.0,95212.0,0.08498665]
[1768694739134,0.010504,95227.0,95212.0,0.00958697]
[1768694739431,0.0946,95228.0,95213.0,0.00958697]
[1768694739635,0.0946,95228.0,95215.0,0.00958697]
[1768694739930,0.0946,95228.0,95216.0,0.07539968]
[1768694740936,0.13351188,95232.0,95216.0,0.07539968]
[1768694741139,0.13351188,95232.0,95217.0,0.07539968]
[1768694741322,0.09210599,95232.0,95217.0,0.07539968]
[1768694741721,0.13453465,95232.0,95217.0,0.07539968]
[1768694742230,0.13453465,95232.0,95219.0,0.07539968]
[1768694742934,0.10147887,95238.0,95222.0,0.07539968]
[1768694743127,0.010504,95234.0,95222.0,0.07539968]
[1768694744734,0.010504,95234.0,95221.0,0.07539968]
[1768694745036,0.09210599,95236.0,95222.0,0.07539968]
[1768694745238,0.010504,95234.0,95221.0,0.07539968]
[1768694746443,0.09210599,95236.0,95221.0,0.07539968]
[1768694746641,0.09210599,95236.0,95222.0,0.07539968]
[1768694746844,0.09210599,95236.0,95223.0,0.07539968]
[1768694747234,0.09210599,95236.0,95222.0,0.07539968]
[1768694747541,0.09210599,95236.0,95221.0,0.07539968]
[1768694747942,0.10260899,95236.0,95221.0,0.07539968]
[1768694748534,0.010503,95240.0,95224.0,0.00958697]
[1768694748743,0.010503,95240.0,95225.0,0.00958697]
[1768694751237,0.010503,95240.0,95226.0,0.07539968]
[1768694751649,0.0946,95241.0,95227.0,0.08498665]
[1768694751833,0.0946,95241.0,95229.0,0.07539968]
[1768694753843,0.0946,95241.0,95230.0,0.07539968]
[1768694754047,0.0946,95241.0,95229.0,0.07539968]
[1768694755046,0.09210599,95244.0,95229.0,0.07539968]
[1768694755246,0.09210599,95244.0,95239.0,5.2e-07]
[1768694755448,0.010503,95242.0,95229.0,0.07539968]
[1768694755647,0.010503,95242.0,95228.0,0.07539968]
[1768694756249,0.010503,95242.0,95227.0,0.08498665]
[1768694756442,0.010503,95242.0,95232.0,0.07539968]
[1768694756644,0.010503,95242.0,95233.0,0.07539968]
[1768694757250,0.010503,95242.0,95234.0,0.07539968]
[1768694757550,0.010503,95242.0,95235.0,0.07539968]
[1768694757848,0.010503,95242.0,95235.0,6.8e-07]
[1768694758051,0.0946,95245.0,95235.0,6.8e-07]
[1768694758253,0.0946,95245.0,95229.0,0.00920814]
[1768694758750,0.010503,95240.0,95229.0,0.00920814]
[1768694758946,0.010503,95240.0,95224.0,0.20252179]
[1768694759151,0.010503,95240.0,95224.0,0.10379171]
[1768694759552,0.010503,95240.0,95225.0,0.09458357]
[1768694760049,0.010504,95236.0,95225.0,0.09458357]
[1768694760251,0.10422441,95245.0,95216.0,0.13201085]
[1768694760252,0.10376973,95229.0,95216.0,0.13201085]
[1768694760550,0.09326573,95229.0,95216.0,0.0946]
[1768694760750,0.00962441,95233.0,95216.0,0.0946]
[1768694760949,0.09326573,95234.0,95216.0,0.0946]
[1768694761854,0.010503,95236.0,95217.0,0.00920814]
[1768694762153,0.010503,95236.0,95218.0,0.00920814]
[1768694763052,0.010503,95239.0,95218.0,0.00920814]
[1768694763645,0.010503,95237.0,95218.0,0.00920814]
[1768694763841,0.10376873,95237.0,95218.0,0.00920814]
[1768694764158,0.010504,95233.0,95216.0,0.0946]
[1768694764855,0.010504,95233.0,95216.0,0.10380814]
[1768694765045,0.0946,95245.0,95217.0,0.00920814]
[1768694765245,0.010504,95235.0,95217.0,0.00920814]
[1768694765947,0.010504,95233.0,95217.0,0.00920814]
[1768694767144,0.010504,95231.0,95217.0,0.00920814]
[1768694767543,0.09326573,95237.0,95217.0,0.00920814]
[1768694767854,0.010504,95232.0,95217.0,0.00920814]
[1768694768359,0.010504,95235.0,95228.0,0.07558069]
[1768694770261,0.05282978,95235.0,95221.0,0.09449219]
[1768694770561,0.010504,95235.0,95220.0,0.09449219]
[1768694770762,0.010504,95235.0,95224.0,0.09449219]
[1768694771262,0.09326573,95237.0,95224.0,0.09449219]
[1768694771459,0.010503,95239.0,95226.0,0.00920814]
[1768694771961,0.0946,95241.0,95229.0,0.11022229]
[1768694772255,0.0946,95241.0,95229.0,0.11943043]
[1768694775061,0.0946,95243.0,95229.0,0.11943043]
[1768694775461,0.0946,95243.0,95229.0,0.00920814]
[1768694775663,0.0946,95243.0,95230.0,0.11022229]
[1768694777461,0.105103,95243.0,95230.0,0.11022229]
[1768694777654,0.105103,95243.0,95229.0,0.00920814]
[1768694778062,0.105103,95243.0,95226.0,0.10370033]
[1768694778366,0.105103,95243.0,95227.0,0.09449219]
[1768694780062,0.010503,95240.0,95227.0,0.09449219]
[1768694780259,0.010503,95240.0,95229.0,0.09449219]
[1768694780562,0.010503,95240.0,95231.0,0.09449219]
[1768694780753,0.105103,95243.0,95231.0,0.09449219]
[1768694780953,0.105103,95243.0,95234.0,0.09449219]
[1768694781862,0.105103,95243.0,95233.0,0.09449219]
[1768694782062,0.105103,95243.0,95237.0,0.09449219]
[1768694782465,0.105103,95243.0,95228.0,0.13201085]
[1768694782964,0.105103,95243.0,95228.0,0.00976295]
[1768694783867,0.0946,95244.0,95228.0,0.00976295]
[1768694784068,0.010503,95243.0,95228.0,0.00976295]
[1768694784269,0.010503,95243.0,95231.0,0.13201085]
[1768694784465,0.010503,95240.0,95231.0,0.13201085]
[1768694785069,0.0946,95244.0,95230.0,0.13201085]
[1768694785463,0.0946,95244.0,95229.0,0.13201085]
[1768694786074,0.010503,95243.0,95229.0,0.13201085]
[1768694786370,0.010503,95243.0,95226.0,0.1417738]
[1768694787773,0.010503,95243.0,95229.0,0.13201085]
[1768694789071,0.010503,95243.0,95232.0,0.13201085]
[1768694789371,0.010503,95243.0,95233.0,0.13201085]
[1768694789873,0.0946,95245.0,95233.0,0.13201085]
[1768694790172,0.0946,95245.0,95232.0,0.13201085]
[1768694791274,0.0946,95245.0,95233.0,0.00976295]
[1768694791574,0.0946,95245.0,95240.0,0.09456347]
[1768694791872,0.0946,95245.0,95242.0,4.7e-07]
[1768694792175,0.0946,95245.0,95233.0,0.00976295]
[1768694793373,0.98701002,95247.0,95233.0,0.00976295]
[1768694793680,0.98701002,95247.0,95246.0,3.8e-07]
[1768694793869,0.98701002,95247.0,95233.0,0.00976295]
[1768694793870,0.010502,95246.0,95233.0,0.00976295]
[1768694794175,0.010503,95244.0,95233.0,0.00976295]
[1768694794569,0.010503,95244.0,95216.0,0.22661085]
[1768694794570,0.11022229,95243.0,95221.0,0.09772095]
[1768694794772,0.11022229,95240.0,95221.0,0.09772095]
[1768694795072,0.010503,95239.0,95221.0,0.19232095]
[1768694795582,0.010503,95239.0,95221.0,0.20152942]
[1768694796069,0.010503,95239.0,95222.0,0.00920847]
[1768694796574,0.11022229,95240.0,95222.0,0.00920847]
[1768694796875,0.11122229,95240.0,95222.0,0.00920847]
[1768694797370,0.010503,95239.0,95222.0,0.00920847]
[1768694798477,0.11022229,95240.0,95222.0,0.00920847]
[1768694798684,0.09135694,95241.0,95222.0,0.00920847]
[1768694801479,0.010503,95240.0,95222.0,0.00920847]
[1768694802172,0.010503,95240.0,95222.0,0.10379194]
[1768694803678,0.010503,95240.0,95232.0,0.07566621]
[1768694804182,0.010503,95238.0,95232.0,0.07566621]
[1768694804583,0.010503,95238.0,95233.0,0.07566621]
[1768694804884,0.09135694,95241.0,95224.0,0.09458347]
[1768694805181,0.98701002,95247.0,95223.0,0.10379194]
[1768694805991,0.0946,95246.0,95223.0,0.00920847]
[1768694806482,0.010503,95241.0,95223.0,0.00920847]
[1768694807079,0.010503,95241.0,95227.0,0.09458347]
[1768694807681,0.010503,95241.0,95226.0,0.09458347]
[1768694807990,0.010503,95241.0,95227.0,0.09458347]
[1768694808587,0.010503,95241.0,95226.0,0.09458347]
[1768694808887,0.010503,95241.0,95227.0,0.09458347]
[1768694809985,0.010503,95241.0,95226.0,0.09458347]
[1768694811996,0.010503,95241.0,95225.0,0.09458347]
[1768694812185,0.010503,95241.0,95225.0,0.10388255]
[1768694814892,0.010503,95241.0,95233.0,0.07566247]
[1768694815091,0.09135694,95245.0,95233.0,0.07566247]
[1768694815688,0.010503,95238.0,95233.0,4.7e-07]
[1768694815993,0.010503,95238.0,95225.0,0.00929908]
[1768694816192,0.010503,95241.0,95225.0,0.00929908]
[1768694820996,0.09135694,95245.0,95225.0,0.00929908]
[1768694821292,0.11022229,95240.0,95221.0,0.20162003]
[1768694821492,0.010503,95238.0,95221.0,0.20162003]
[1768694821693,0.11022229,95240.0,95222.0,0.00929908]
[1768694822394,0.010503,95239.0,95223.0,0.00929908]
[1768694822990,0.010503,95237.0,95223.0,0.00929908]
[1768694823391,0.010503,95237.0,95222.0,0.09256979]
[1768694823992,0.010503,95238.0,95222.0,0.09256979]
[1768694824997,0.11022229,95240.0,95222.0,0.09256979]
[1768694825302,0.010503,95239.0,95222.0,0.09256979]
[1768694825606,0.010503,95239.0,95222.0,0.10186887]
[1768694826697,0.010503,95239.0,95223.0,0.00929908]
[1768694827093,0.010503,95237.0,95223.0,0.00929908]
[1768694830091,0.010503,95236.0,95223.0,0.00929908]
[1768694830497,0.010504,95236.0,95223.0,0.00929908]
[1768694831702,0.010503,95239.0,95223.0,0.00929908]
[1768694832602,0.010503,95237.0,95223.0,0.00929908]
[1768694832800,0.010503,95237.0,95223.0,0.08496694]
[1768694833195,0.010503,95237.0,95224.0,0.07566786]
[1768694833603,0.010503,95237.0,95225.0,0.07566786]
[1768694833804,0.010503,95236.0,95225.0,0.07566786]
[1768694834603,0.010503,95239.0,95225.0,0.07566786]
[1768694835103,0.18726893,95244.0,95225.0,0.07566786]
[1768694835402,0.010503,95239.0,95225.0,0.07566786]
[1768694835805,0.09266893,95243.0,95225.0,0.07566786]
[1768694836000,0.09266893,95243.0,95224.0,0.07566786]
[1768694836213,0.0946,95244.0,95219.0,0.00929908]
[1768694836214,0.010504,95235.0,95225.0,0.07566786]
[1768694837201,0.010503,95241.0,95225.0,0.07566786]
[1768694837399,0.010504,95235.0,95225.0,0.07566786]
[1768694839006,0.010503,95238.0,95225.0,0.07566786]
[1768694839398,0.010503,95238.0,95226.0,0.07566786]
[1768694840817,0.010503,95238.0,95224.0,0.07566786]
[1768694842414,0.010503,95238.0,95223.0,0.07566786]
[1768694842701,0.010503,95241.0,95224.0,0.00959062]
[1768694843107,0.010503,95241.0,95224.0,0.08525848]
[1768694845812,0.010503,95241.0,95225.0,0.07566786]
[1768694846302,0.010503,95241.0,95225.0,0.08525848]
[1768694848004,0.010503,95241.0,95226.0,0.00959062]
[1768694849717,0.010503,95239.0,95226.0,0.00959062]
[1768694851411,0.010503,95238.0,95224.0,0.08525848]
[1768694851904,0.0946,95242.0,95224.0,0.08525848]
[1768694852315,0.0946,95242.0,95225.0,0.07566786]
[1768694853718,0.0956,95242.0,95225.0,0.07566786]
[1768694853917,0.0956,95242.0,95224.0,0.08525848]
[1768694854518,0.010503,95238.0,95224.0,0.08525848]
[1768694855416,0.010503,95238.0,95224.0,0.00959062]
[1768694855819,0.010503,95240.0,95224.0,0.08525848]
[1768694856015,0.010503,95240.0,95225.0,0.08529594]
[1768694856221,0.001,95238.0,95225.0,0.08529594]
[1768694856418,0.010503,95240.0,95225.0,0.08529594]
[1768694856924,0.010503,95238.0,95225.0,0.08529594]
[1768694860527,0.010503,95238.0,95226.0,0.00962808]
[1768694860826,0.010503,95238.0,95227.0,0.07566786]
[1768694861529,0.010503,95236.0,95227.0,0.07566786]
[1768694861730,0.010503,95239.0,95227.0,0.07566786]
[1768694862326,0.010503,95239.0,95226.0,0.08529594]
[1768694864531,0.010503,95239.0,95226.0,0.00962808]
[1768694864931,0.010503,95239.0,95227.0,0.00962808]
[1768694865431,0.010503,95239.0,95227.0,0.08529594]
[1768694865931,0.010503,95239.0,95227.0,0.00962808]
[1768694875332,0.010503,95237.0,95227.0,0.00962808]
[1768694875638,0.0946,95242.0,95227.0,0.00962808]
[1768694875833,0.010503,95237.0,95227.0,0.00962808]
[1768694876432,0.010503,95237.0,95227.0,0.08529594]
[1768694877534,0.010503,95237.0,95227.0,0.00962808]
[1768694877935,0.010503,95237.0,95227.0,0.08529594]
[1768694878248,0.010503,95240.0,95227.0,0.08529594]
[1768694878739,0.0946,95242.0,95228.0,0.0092392]
[1768694879345,0.0946,95242.0,95229.0,0.0092392]
[1768694881245,0.0946,95242.0,95234.0,0.05674976]
[1768694882538,0.0946,95242.0,95229.0,0.0092392]
[1768694884744,0.010503,95241.0,95229.0,0.0092392]
[1768694885138,0.0946,95242.0,95229.0,0.0092392]
[1768694887147,0.0946,95241.0,95229.0,0.0092392]
[1768694888453,0.0946,95241.0,95228.0,0.09237444]
[1768694897459,0.0946,95241.0,95240.0,0.03783111]
[1768694897760,0.0946,95241.0,95228.0,0.09237444]
[1768694902467,0.0946,95241.0,95235.0,0.05674705]
[1768694904557,0.0946,95241.0,95237.0,0.05674705]
[1768694905556,0.0946,95241.0,95235.0,0.05674705]
[1768694905863,0.0946,95241.0,95228.0,0.09237444]
[1768694905864,0.0946,95241.0,95234.0,0.05674705]
[1768694906657,0.0946,95241.0,95235.0,0.01476979]
[1768694907548,0.0946,95241.0,95228.0,0.09237444]
[1768694913064,0.0946,95241.0,95225.0,0.08490706]
[1768694913759,0.0946,95241.0,95225.0,0.0092392]
[1768694915564,0.0946,95241.0,95227.0,0.07566786]
[1768694915861,0.0946,95241.0,95228.0,0.07566786]
[1768694916662,0.0946,95241.0,95227.0,0.07566786]
[1768694917262,0.0946,95241.0,95228.0,0.07566786]
[1768694924768,0.0946,95241.0,95225.0,0.0092392]
[1768694926769,0.0946,95241.0,95234.0,0.05673792]
[1768694927883,0.0946,95241.0,95239.0,0.0378253]
[1768694929183,0.0946,95241.0,95239.0,0.01324483]
[1768694929480,0.0946,95241.0,95239.0,0.00137169]
[1768694934689,0.0946,95241.0,95234.0,0.05673792]
[1768694934690,0.0946,95241.0,95236.0,0.05673792]
[1768694935190,0.0946,95241.0,95235.0,0.05673792]
[1768694935890,0.0946,95241.0,95233.0,0.05673792]
[1768694936689,0.0946,95241.0,95234.0,0.05673792]
[1768694942487,0.0946,95241.0,95224.0,0.07566786]
[1768694943195,0.0946,95241.0,95224.0,0.1749757]
[1768694943396,0.0946,95241.0,95225.0,0.10861214]
[1768694944193,0.0946,95242.0,95225.0,0.10861214]
[1768694944495,0.0946,95242.0,95226.0,0.0093043]
[1768694944791,0.0946,95242.0,95226.0,0.10861214]
[1768694945790,0.0946,95242.0,95227.0,0.07566786]
[1768694945987,0.0946,95242.0,95226.0,0.10861214]
[1768694950996,0.0946,95242.0,95230.0,0.11021444]
[1768694951298,0.0946,95242.0,95226.0,0.10861214]
[1768694955997,0.0946,95242.0,95226.0,0.18428]
[1768694956200,0.0946,95242.0,95229.0,0.07566786]
[1768694958001,0.0946,95242.0,95226.0,0.10861214]
[1768694960503,0.0946,95242.0,95227.0,0.0093043]
[1768694960710,0.0946,95260.0,95246.0,0.10861214]
[1768694961706,0.105101,95260.0,95246.0,0.10861214]
[1768694962405,0.105101,95260.0,95246.0,0.16526781]
[1768694962905,0.0946,95260.0,95246.0,0.16526781]
[1768694963302,0.04242001,95261.0,95246.0,0.10861214]
[1768694964198,0.00230937,95264.0,95247.0,0.00975999]
[1768694964508,0.04090044,95261.0,95249.0,0.09900983]
[1768694965407,0.00230937,95264.0,95249.0,0.09900983]
[1768694966400,0.04397702,95264.0,95249.0,0.09900983]
[1768694967297,0.00230937,95264.0,95249.0,0.09900983]
[1768694967703,0.04317527,95264.0,95249.0,0.09900983]
[1768694968297,0.00230937,95264.0,95249.0,0.10876982]
[1768694968502,0.04360437,95264.0,95249.0,0.10876982]
[1768694969815,0.04393155,95264.0,95253.0,0.10876982]
[1768694970015,0.04393155,95264.0,95254.0,0.10876982]
[1768694970215,0.00230937,95264.0,95254.0,0.10876982]
[1768694970516,0.04393155,95264.0,95254.0,0.10876982]
[1768694970718,0.04162218,95264.0,95254.0,0.10876982]
[1768694971401,0.00230926,95269.0,95256.0,0.09900983]
[1768694971611,0.00230926,95269.0,95260.0,0.10876982]
[1768694971914,0.00230926,95269.0,95260.0,0.09900983]
[1768694973519,0.04104251,95275.0,95261.0,0.10876982]
[1768694973707,0.3133828,95278.0,95261.0,0.10876982]
[1768694974107,0.010499,95277.0,95261.0,0.10876982]
[1768694974302,0.3133828,95278.0,95261.0,0.10876982]
[1768694974511,0.3133828,95278.0,95267.0,0.10010904]
[1768694974705,0.31384222,95278.0,95267.0,0.10010904]
[1768694975308,0.31384222,95278.0,95267.0,0.09100013]
[1768694975915,0.31476756,95278.0,95267.0,0.11925417]
[1768694977220,0.31476756,95278.0,95269.0,0.02825404]
[1768694977517,0.31476756,95278.0,95270.0,0.02825404]
[1768694977709,0.31476756,95278.0,95271.0,0.02825404]
[1768694977909,0.27334029,95278.0,95271.0,0.02825404]
[1768694978109,0.31444046,95278.0,95271.0,0.02825404]
[1768694978417,0.31344046,95278.0,95270.0,0.02825404]
[1768694979418,0.31396367,95278.0,95270.0,0.02825404]
[1768694979620,0.27234029,95278.0,95270.0,0.02825404]
[1768694979813,0.31396367,95278.0,95270.0,0.02825404]
[1768694980012,0.04162338,95278.0,95270.0,0.02825404]
[1768694980718,0.09456,95280.0,95270.0,0.02825404]
[1768694982713,0.09456,95280.0,95271.0,0.02825404]
[1768694983116,1e-08,95289.0,95277.0,0.02825404]
[1768694983315,1e-08,95289.0,95279.0,0.02825404]
[1768694984524,1e-08,95289.0,95280.0,0.02825404]
[1768694987327,1e-08,95289.0,95281.0,0.02825404]
[1768694989529,1e-08,95289.0,95282.0,0.02825404]
[1768694991328,1e-08,95289.0,95283.0,0.02825404]
[1768694997344,1e-08,95289.0,95284.0,0.02825404]
[1768694997943,1e-08,95289.0,95283.0,0.02825404]
[1768694998343,1e-08,95289.0,95284.0,0.02825404]
[1768695000348,1e-08,95289.0,95285.0,0.02825404]
[1768695001545,0.010498,95288.0,95271.0,0.05665567]
[1768695001746,0.010498,95288.0,95270.0,0.05665567]
[1768695002248,0.010498,95288.0,95270.0,0.15928173]
[1768695002842,0.010498,95288.0,95271.0,0.10262606]
[1768695003048,1e-08,95289.0,95271.0,0.10262606]
[1768695003349,0.010498,95285.0,95271.0,0.10262606]
[1768695003844,0.010498,95288.0,95271.0,0.10262606]
[1768695004050,0.010498,95287.0,95271.0,0.10262606]
[1768695004247,0.04095094,95287.0,95267.0,0.05665567]
[1768695004441,0.010498,95287.0,95268.0,0.10262606]
[1768695004841,0.010498,95287.0,95269.0,0.10262606]
[1768695005347,0.010498,95285.0,95269.0,0.10262606]
[1768695006051,0.010498,95288.0,95270.0,0.10262606]
[1768695006250,0.001,95287.0,95270.0,0.10262606]
[1768695006952,0.010498,95285.0,95270.0,0.10262606]
[1768695007647,0.001,95288.0,95271.0,0.00933137]
[1768695007951,0.001,95288.0,95270.0,0.09329469]
[1768695007952,1e-08,95289.0,95279.0,0.10262606]
[1768695009250,1e-08,95289.0,95280.0,0.10262606]
[1768695014052,0.09456001,95289.0,95280.0,0.10262606]
[1768695014757,0.08456,95290.0,95283.0,0.09329469]
[1768695014957,0.09456,95293.0,95283.0,0.09329469]
[1768695015658,0.09456,95293.0,95284.0,0.05665567]
[1768695016361,0.09456,95293.0,95283.0,0.14995036]
[1768695016960,0.09456,95293.0,95284.0,0.05665567]
[1768695017360,0.09456,95293.0,95283.0,0.14995036]
[1768695023867,0.0023084,95304.0,95295.0,0.10305192]
[1768695024066,0.00945097,95317.0,95297.0,0.0565977]
[1768695024260,0.00945097,95317.0,95297.0,0.15964962]
[1768695025356,0.00945097,95317.0,95298.0,0.10305192]
[1768695025758,0.00945097,95317.0,95298.0,0.15964962]
[1768695026372,0.105054,95318.0,95300.0,0.10305192]
[1768695027175,0.001,95317.0,95300.0,0.10305192]
[1768695028662,0.106054,95318.0,95300.0,0.10305192]
[1768695029262,0.09556,95318.0,95300.0,0.10305192]
[1768695029562,0.011494,95317.0,95300.0,0.10305192]
[1768695029764,0.001,95317.0,95300.0,0.10305192]
[1768695030171,0.09456,95318.0,95300.0,0.10305192]
[1768695030375,0.09556,95318.0,95300.0,0.10305192]
[1768695030768,0.106054,95318.0,95300.0,0.10305192]
[1768695031570,0.106054,95318.0,95300.0,0.14069653]
[1768695031773,0.001,95317.0,95300.0,0.14069653]
[1768695031969,0.010495,95316.0,95300.0,0.14069653]
[1768695032371,0.010495,95313.0,95299.0,0.03764461]
[1768695032572,0.11009661,95310.0,95299.0,0.03764461]
[1768695033075,0.11009661,95310.0,95293.0,0.0565977]
[1768695033076,0.13004258,95310.0,95293.0,0.0565977]
[1768695033974,0.13004258,95310.0,95294.0,0.0565977]
[1768695034775,0.13104258,95310.0,95294.0,0.0565977]
[1768695035572,0.13004258,95310.0,95294.0,0.0565977]
[1768695035874,0.13004258,95310.0,95293.0,0.0565977]
[1768695036075,0.010496,95308.0,95293.0,0.0565977]
[1768695036474,0.05213292,95308.0,95293.0,0.0565977]
[1768695036874,0.04163692,95308.0,95293.0,0.0565977]
[1768695037276,0.11954758,95310.0,95293.0,0.0565977]
[1768695038078,0.16052426,95310.0,95293.0,0.0565977]
[1768695038270,0.16052426,95310.0,95294.0,0.0565977]
[1768695038471,0.00945097,95310.0,95294.0,0.0565977]
[1768695038668,0.11954758,95310.0,95294.0,0.0565977]
[1768695038868,0.11009661,95310.0,95294.0,0.0565977]
[1768695039068,0.03893251,95315.0,95294.0,0.0565977]
[1768695039264,0.11009661,95310.0,95294.0,0.0565977]
[1768695040179,0.11009661,95310.0,95294.0,0.151876]
[1768695040775,0.010495,95312.0,95294.0,0.151876]
[1768695041870,0.010495,95310.0,95294.0,0.151876]
[1768695042375,0.010495,95310.0,95295.0,0.0565977]
[1768695042376,0.12059161,95310.0,95295.0,0.0565977]
[1768695042768,0.12059161,95310.0,95296.0,0.0565977]
[1768695045385,0.12059161,95310.0,95297.0,0.0565977]
[1768695045885,0.09452,95309.0,95297.0,0.0565977]
[1768695046683,0.010495,95308.0,95297.0,0.0565977]
[1768695047483,0.010496,95305.0,95297.0,0.0565977]
[1768695047681,0.010495,95308.0,95296.0,0.0565977]
[1768695049286,0.010495,95308.0,95297.0,0.0565977]
[1768695050196,0.011495,95308.0,95297.0,0.0565977]
[1768695050797,0.010495,95308.0,95297.0,0.0565977]
[1768695051397,0.010495,95308.0,95298.0,0.0565977]
[1768695052303,0.010495,95308.0,95299.0,0.0565977]
[1768695052494,0.010495,95308.0,95300.0,0.0565977]
[1768695053102,0.010495,95308.0,95298.0,0.0565977]
[1768695053297,0.010495,95308.0,95299.0,0.0565977]
[1768695055095,0.09452,95309.0,95299.0,0.0565977]
[1768695056197,0.105015,95309.0,95299.0,0.0565977]
[1768695057495,0.105015,95309.0,95300.0,0.0565977]
[1768695058206,0.105015,95309.0,95297.0,0.0565977]
[1768695059307,0.105015,95309.0,95298.0,0.0565977]
[1768695059508,0.09452,95309.0,95298.0,0.0565977]
[1768695060603,0.010495,95308.0,95298.0,0.0565977]
[1768695061005,0.09452,95309.0,95298.0,0.0565977]
[1768695061803,0.010495,95308.0,95298.0,0.0565977]
[1768695062010,0.010495,95308.0,95292.0,0.0952783]
[1768695062405,0.010495,95308.0,95292.0,0.10460324]
[1768695064211,0.09452,95309.0,95289.0,0.00230878]
[1768695064212,0.02003209,95306.0,95289.0,0.00230878]
[1768695064412,0.00953609,95306.0,95289.0,0.00230878]
[1768695064614,0.105015,95309.0,95289.0,0.11061025]
[1768695064814,0.010496,95307.0,95289.0,0.11061025]
[1768695065513,0.010496,95305.0,95289.0,0.10128531]
[1768695066001,0.02003109,95308.0,95289.0,0.10128531]
[1768695067114,0.02103109,95308.0,95289.0,0.10128531]
[1768695067616,0.02103109,95308.0,95289.0,0.11061025]
[1768695068517,0.02003109,95308.0,95289.0,0.11061025]
[1768695068716,0.02103109,95308.0,95289.0,0.11061025]
[1768695069207,0.010496,95306.0,95289.0,0.11061025]
[1768695070117,0.010496,95306.0,95289.0,0.18627811]
[1768695070317,0.010496,95306.0,95290.0,0.09897653]
[1768695071014,0.11009661,95300.0,95289.0,0.00230878]
[1768695071315,0.010497,95296.0,95289.0,0.00230878]
[1768695072417,0.09452,95298.0,95289.0,0.00230878]
[1768695072612,0.010497,95297.0,95289.0,0.00230878]
[1768695075621,0.011497,95297.0,95289.0,0.00230878]
[1768695079020,0.001,95297.0,95289.0,0.00230878]
[1768695079423,0.09452,95298.0,95289.0,0.00230878]
[1768695088733,0.10425012,95298.0,95289.0,0.00230878]
[1768695091840,0.11474712,95298.0,95289.0,0.00230878]
[1768695094440,0.09452,95297.0,95289.0,0.00230878]
[1768695094641,0.09452,95296.0,95289.0,0.00230878]
[1768695109748,0.10394705,95296.0,95284.0,0.00230889]
[1768695109957,0.00737134,95295.0,95284.0,0.00230889]
[1768695122275,0.09452,95296.0,95284.0,0.00230889]
[1768695125571,0.10177749,95296.0,95284.0,0.00230889]
[1768695125757,0.09452,95295.0,95284.0,0.00230889]
[1768695127171,0.10177749,95295.0,95284.0,0.00230889]
[1768695127563,0.00716788,95294.0,95284.0,0.00230889]
[1768695127875,0.09452,95295.0,95284.0,0.00230889]
[1768695137075,0.09456454,95295.0,95284.0,0.00230889]
[1768695138485,0.09452,95295.0,95284.0,0.00230889]
[1768695150793,0.09452,95294.0,95284.0,0.00230889]
[1768695155205,0.09452,95295.0,95284.0,0.00230889]
[1768695159999,0.09452,95294.0,95284.0,0.00230889]
[1768695161512,0.00016151,95294.0,95284.0,0.00230889]
[1768695164914,0.09452,95295.0,95284.0,0.00230889]
[1768695173218,0.0945714,95295.0,95284.0,0.00230889]
[1768695174717,0.09452,95295.0,95284.0,0.00230889]
[1768695175414,0.09456744,95296.0,95284.0,0.00230889]
[1768695175611,4.744e-05,95295.0,95284.0,0.00230889]
[1768695178320,5.499e-05,95293.0,95284.0,0.00230889]
[1768695178621,0.09059218,95289.0,95269.0,0.00230926]
[1768695179020,0.10109018,95289.0,95269.0,0.00230926]
[1768695179319,0.10109018,95289.0,95270.0,0.11010024]
[1768695179516,6.565e-05,95279.0,95269.0,0.00230926]
[1768695179730,6.565e-05,95279.0,95269.0,0.00224361]
[1768695182020,6.565e-05,95279.0,95264.0,0.00230937]
[1768695186215,0.11010024,95274.0,95264.0,0.00230937]
[1768695186812,0.010499,95278.0,95264.0,0.00230937]
[1768695187020,0.11010024,95280.0,95264.0,0.00230937]
[1768695187428,0.00045013,95279.0,95264.0,0.00230937]
[1768695187723,0.11010024,95274.0,95264.0,0.00230937]
[1768695187923,0.00045013,95274.0,95264.0,0.00230937]
[1768695189427,0.010499,95273.0,95264.0,0.00230937]
[1768695189628,0.010499,95273.0,95259.0,0.09433048]
[1768695189925,0.010499,95273.0,95259.0,0.08809948]
[1768695191630,0.00045013,95274.0,95259.0,0.08809948]
[1768695193629,0.00145013,95274.0,95259.0,0.08809948]
[1768695194128,0.001,95274.0,95259.0,0.08809948]
[1768695195527,0.011499,95274.0,95259.0,0.08809948]
[1768695196534,0.010499,95274.0,95259.0,0.08809948]
[1768695197528,0.0105,95270.0,95250.0,0.10770826]
[1768695197734,0.09456,95269.0,95250.0,0.10770826]
[1768695197933,0.09456,95269.0,95252.0,0.10770826]
[1768695198936,0.09456,95269.0,95253.0,0.00947915]
[1768695199131,0.09456,95269.0,95254.0,0.09822911]
[1768695203733,0.10506,95269.0,95254.0,0.09822911]
[1768695205845,0.09456,95269.0,95254.0,0.09822911]
[1768695210242,0.0105,95268.0,95254.0,0.09822911]
[1768695211344,0.05255883,95268.0,95254.0,0.09822911]
[1768695211754,0.0105,95268.0,95254.0,0.09822911]
[1768695212544,0.0115,95268.0,95254.0,0.09822911]
[1768695213244,0.0105,95266.0,95254.0,0.09822911]
[1768695214545,0.001,95268.0,95254.0,0.09822911]
[1768695215654,0.09456,95269.0,95254.0,0.10818267]
[1768695219855,0.09456,95269.0,95256.0,0.09049466]
[1768695223256,0.0105,95268.0,95256.0,0.09049466]
[1768695225660,0.0115,95268.0,95256.0,0.09049466]
[1768695226449,0.05266135,95268.0,95256.0,0.09049466]
[1768695226851,0.0105,95268.0,95256.0,0.09049466]
[1768695229961,0.09456,95269.0,95256.0,0.09049466]
[1768695230553,0.09456,95269.0,95256.0,0.10044822]
[1768695232167,0.09456,95269.0,95258.0,0.10903467]
[1768695233361,0.09456,95269.0,95258.0,0.09915095]
[1768695241581,0.13680581,95269.0,95258.0,0.09915095]
[1768695241875,0.09456,95269.0,95258.0,0.09915095]
[1768695242977,0.09556,95269.0,95258.0,0.09915095]
[1768695243767,0.09456,95269.0,95258.0,0.09915095]